[Event "*** Titled Tuesday Blitz"]
[Site "Chess.com"]
[Date "2020.05.19"]
[Round "2"]
[White "kleinebeer98"]
[Black "CroissantNeuf"]
[Result "1-0"]
[WhiteElo "2686"]
[BlackElo "2369"]
[TimeControl "180+1"]
[EndTime "12:18:17 PDT"]
[Termination "kleinebeer98 won on time"]

1. e4 {[%clk 0:02:59]} 1... c6 {[%clk 0:02:57.3]} 2. d4 {[%clk 0:02:58.2]} 2...
d5 {[%clk 0:02:57.9]} 3. f3 {[%clk 0:02:58.8]} 3... e6 {[%clk 0:02:57.2]} 4. Nc3
{[%clk 0:02:58.5]} 4... Bb4 {[%clk 0:02:56.8]} 5. Bd3 {[%clk 0:02:57.8]} 5...
dxe4 {[%clk 0:02:53.7]} 6. fxe4 {[%clk 0:02:58.7]} 6... Qxd4 {[%clk 0:02:49.6]}
7. Bd2 {[%clk 0:02:59.1]} 7... Nf6 {[%clk 0:02:44.4]} 8. Nf3 {[%clk 0:02:57]}
8... Qd8 {[%clk 0:02:42.7]} 9. Qe2 {[%clk 0:02:53]} 9... Nbd7 {[%clk 0:02:33.2]}
10. O-O-O {[%clk 0:02:49.7]} 10... Nc5 {[%clk 0:02:23.2]} 11. Bc4 {[%clk
0:02:46.7]} 11... Qe7 {[%clk 0:02:04.5]} 12. Kb1 {[%clk 0:02:24.7]} 12... b5
{[%clk 0:01:44.3]} 13. e5 {[%clk 0:01:52.5]} 13... Bxc3 {[%clk 0:01:32.6]} 14.
exf6 {[%clk 0:01:12.4]} 14... Bxf6 {[%clk 0:01:28.7]} 15. Bd3 {[%clk 0:00:59.1]}
15... Nxd3 {[%clk 0:01:07.5]} 16. Qxd3 {[%clk 0:01:00]} 16... O-O {[%clk
0:01:07.2]} 17. Bc3 {[%clk 0:00:49.2]} 17... Bxc3 {[%clk 0:00:50.2]} 18. Qxc3
{[%clk 0:00:50.1]} 18... c5 {[%clk 0:00:49.7]} 19. Ne5 {[%clk 0:00:47.3]} 19...
b4 {[%clk 0:00:32.5]} 20. Qg3 {[%clk 0:00:40.6]} 20... f6 {[%clk 0:00:22.6]} 21.
Nc6 {[%clk 0:00:35.8]} 21... Qe8 {[%clk 0:00:17.8]} 22. Qd6 {[%clk 0:00:34.5]}
22... Bb7 {[%clk 0:00:11.9]} 23. Ne7+ {[%clk 0:00:30]} 23... Kh8 {[%clk
0:00:12.2]} 24. Qxe6 {[%clk 0:00:20.7]} 24... Rf7 {[%clk 0:00:10.5]} 25. Rhe1
{[%clk 0:00:20]} 25... Qf8 {[%clk 0:00:09.5]} 26. g4 {[%clk 0:00:16.7]} 26...
Bf3 {[%clk 0:00:07.7]} 27. Rd7 {[%clk 0:00:15.7]} 27... Re8 {[%clk 0:00:02.8]}
28. Ng6+ {[%clk 0:00:14.6]} 28... hxg6 {[%clk 0:00:03]} 29. Qxe8 {[%clk
0:00:10.4]} 1-0

[Event "*** Titled Tuesday Blitz"]
[Site "Chess.com"]
[Date "2020.05.19"]
[Round "2"]
[White "m_ezat"]
[Black "spectralsoul"]
[Result "1/2-1/2"]
[WhiteElo "2550"]
[BlackElo "2863"]
[TimeControl "180+1"]
[EndTime "12:18:18 PDT"]
[Termination "Game drawn by repetition"]

1. d4 {[%clk 0:03:00.9]} 1... g6 {[%clk 0:02:59.3]} 2. c4 {[%clk 0:03:00.7]}
2... Bg7 {[%clk 0:02:59.7]} 3. e4 {[%clk 0:03:01.3]} 3... d6 {[%clk 0:02:59.9]}
4. Nc3 {[%clk 0:03:01]} 4... Nf6 {[%clk 0:03:00.3]} 5. Be2 {[%clk 0:03:00.3]}
5... O-O {[%clk 0:03:00.2]} 6. Bg5 {[%clk 0:03:00.9]} 6... h6 {[%clk 0:02:58.4]}
7. Be3 {[%clk 0:03:00.7]} 7... c6 {[%clk 0:02:58.6]} 8. Qd2 {[%clk 0:03:00.4]}
8... Kh7 {[%clk 0:02:58.9]} 9. h4 {[%clk 0:02:59.4]} 9... h5 {[%clk 0:02:57.3]}
10. f3 {[%clk 0:02:59.1]} 10... a6 {[%clk 0:02:56.7]} 11. Nh3 {[%clk 0:02:52.2]}
11... Bxh3 {[%clk 0:02:56.2]} 12. Rxh3 {[%clk 0:02:51.5]} 12... b5 {[%clk
0:02:57.1]} 13. a3 {[%clk 0:02:50.7]} 13... Nbd7 {[%clk 0:02:54.1]} 14. g4
{[%clk 0:02:47.5]} 14... bxc4 {[%clk 0:02:35.4]} 15. Bxc4 {[%clk 0:02:34.1]}
15... d5 {[%clk 0:02:26.3]} 16. exd5 {[%clk 0:02:26.6]} 16... Nb6 {[%clk
0:02:26.1]} 17. Ba2 {[%clk 0:02:18.4]} 17... cxd5 {[%clk 0:02:14.9]} 18. Bg5
{[%clk 0:02:07.4]} 18... Qd7 {[%clk 0:02:10.8]} 19. Rh1 {[%clk 0:01:52.9]} 19...
Rac8 {[%clk 0:01:59.3]} 20. Bxf6 {[%clk 0:01:44.3]} 20... exf6 {[%clk
0:01:58.6]} 21. gxh5 {[%clk 0:01:40.9]} 21... Rfe8+ {[%clk 0:01:58.9]} 22. Kf2
{[%clk 0:01:40.3]} 22... Bh6 {[%clk 0:01:58.3]} 23. Qd3 {[%clk 0:01:36.2]} 23...
Re3 {[%clk 0:01:52.7]} 24. hxg6+ {[%clk 0:01:29.6]} 24... fxg6 {[%clk
0:01:53.6]} 25. Qc2 {[%clk 0:01:24.4]} 25... Qf5 {[%clk 0:01:09.9]} 26. Qxf5
{[%clk 0:01:20.3]} 26... gxf5 {[%clk 0:01:10.8]} 27. Rhe1 {[%clk 0:01:18.5]}
27... f4 {[%clk 0:01:08]} 28. Rg1 {[%clk 0:01:11.5]} 28... f5 {[%clk 0:00:59.2]}
29. h5 {[%clk 0:01:04.8]} 29... Bg7 {[%clk 0:00:57.3]} 30. Rad1 {[%clk 0:01:00]}
30... Nc4 {[%clk 0:00:46]} 31. Nxd5 {[%clk 0:00:45.4]} 31... Nxb2 {[%clk
0:00:44]} 32. Nxe3 {[%clk 0:00:11.8]} 32... fxe3+ {[%clk 0:00:44.9]} 33. Kxe3
{[%clk 0:00:11.6]} 33... Rc3+ {[%clk 0:00:41.2]} 34. Kf4 {[%clk 0:00:09.3]}
34... Nxd1 {[%clk 0:00:40.2]} 35. Rxd1 {[%clk 0:00:09.2]} 35... Bh6+ {[%clk
0:00:34.1]} 36. Kxf5 {[%clk 0:00:08.1]} 36... Rxf3+ {[%clk 0:00:34.4]} 37. Ke6
{[%clk 0:00:07.1]} 37... Re3+ {[%clk 0:00:33.9]} 38. Kf5 {[%clk 0:00:06.1]}
38... Rf3+ {[%clk 0:00:33.9]} 39. Ke6 {[%clk 0:00:06.3]} 39... Re3+ {[%clk
0:00:34.2]} 40. Kf5 {[%clk 0:00:05.9]} 40... Rf3+ {[%clk 0:00:34.5]} 1/2-1/2

[Event "*** Titled Tuesday Blitz"]
[Site "Chess.com"]
[Date "2020.05.19"]
[Round "2"]
[White "PawnEatingZombie"]
[Black "Godzillator"]
[Result "0-1"]
[WhiteElo "2246"]
[BlackElo "2459"]
[TimeControl "180+1"]
[EndTime "12:18:18 PDT"]
[Termination "Godzillator won on time"]

1. d4 {[%clk 0:03:00.9]} 1... d5 {[%clk 0:02:59.4]} 2. c4 {[%clk 0:03:00.2]}
2... c6 {[%clk 0:02:59.2]} 3. Nc3 {[%clk 0:02:59.5]} 3... Nf6 {[%clk 0:02:59.1]}
4. e3 {[%clk 0:02:59.4]} 4... a6 {[%clk 0:02:58.6]} 5. Qc2 {[%clk 0:02:57.5]}
5... Bg4 {[%clk 0:02:54.8]} 6. Nge2 {[%clk 0:02:55.3]} 6... e6 {[%clk
0:02:53.5]} 7. h3 {[%clk 0:02:53.1]} 7... Bh5 {[%clk 0:02:53.3]} 8. Nf4 {[%clk
0:02:52.4]} 8... Bg6 {[%clk 0:02:53.6]} 9. Nxg6 {[%clk 0:02:52]} 9... hxg6
{[%clk 0:02:54.5]} 10. Be2 {[%clk 0:02:43.2]} 10... b5 {[%clk 0:02:54.5]} 11. b3
{[%clk 0:02:42.8]} 11... Bd6 {[%clk 0:02:50.1]} 12. O-O {[%clk 0:02:30.7]} 12...
Nbd7 {[%clk 0:02:48.3]} 13. e4 {[%clk 0:02:29.2]} 13... Bc7 {[%clk 0:02:37.9]}
14. e5 {[%clk 0:02:24.2]} 14... Ng8 {[%clk 0:02:35.3]} 15. cxd5 {[%clk
0:02:22.5]} 15... cxd5 {[%clk 0:02:34.8]} 16. Be3 {[%clk 0:01:53.6]} 16... Ne7
{[%clk 0:02:33.1]} 17. a4 {[%clk 0:01:40.5]} 17... b4 {[%clk 0:02:32.3]} 18. Na2
{[%clk 0:01:38.7]} 18... a5 {[%clk 0:02:32.6]} 19. Nc1 {[%clk 0:01:34.8]} 19...
Nf5 {[%clk 0:02:29.5]} 20. Bb5 {[%clk 0:01:33.3]} 20... O-O {[%clk 0:02:27.2]}
21. Nd3 {[%clk 0:01:32.8]} 21... Bb6 {[%clk 0:02:25.6]} 22. Qc6 {[%clk
0:00:50.8]} 22... Ra7 {[%clk 0:02:14.4]} 23. Nc5 {[%clk 0:00:38.3]} 23... Bxc5
{[%clk 0:02:11.2]} 24. dxc5 {[%clk 0:00:37.5]} 24... Nxe3 {[%clk 0:02:10.8]} 25.
fxe3 {[%clk 0:00:36.9]} 25... Nxe5 {[%clk 0:02:10.5]} 26. Qb6 {[%clk 0:00:35.5]}
26... Qxb6 {[%clk 0:02:06.7]} 27. cxb6 {[%clk 0:00:35.4]} 27... Rb7 {[%clk
0:02:06.7]} 28. Rac1 {[%clk 0:00:35.4]} 28... Rxb6 {[%clk 0:02:06.7]} 29. Rc7
{[%clk 0:00:35.7]} 29... f6 {[%clk 0:01:59.9]} 30. Rfc1 {[%clk 0:00:34.9]} 30...
Rd6 {[%clk 0:01:45.9]} 31. Ra7 {[%clk 0:00:33.8]} 31... g5 {[%clk 0:01:36.5]}
32. Rxa5 {[%clk 0:00:32.1]} 32... g4 {[%clk 0:01:36.8]} 33. hxg4 {[%clk
0:00:27]} 33... Nxg4 {[%clk 0:01:36.6]} 34. Rc7 {[%clk 0:00:26.4]} 34... Ne5
{[%clk 0:01:11.4]} 35. Raa7 {[%clk 0:00:23.5]} 35... Rf7 {[%clk 0:01:11.7]} 36.
a5 {[%clk 0:00:19.9]} 36... d4 {[%clk 0:00:51.9]} 37. exd4 {[%clk 0:00:19]}
37... Rxd4 {[%clk 0:00:51.9]} 38. Rxf7 {[%clk 0:00:16.5]} 38... Nxf7 {[%clk
0:00:51.1]} 39. a6 {[%clk 0:00:17]} 39... Rd1+ {[%clk 0:00:49.5]} 40. Kh2 {[%clk
0:00:14.4]} 40... Ra1 {[%clk 0:00:49.4]} 41. Ra8+ {[%clk 0:00:05.5]} 41... Kh7
{[%clk 0:00:49.1]} 42. a7 {[%clk 0:00:05.1]} 42... Ne5 {[%clk 0:00:44.5]} 43.
Be8 {[%clk 0:00:02.4]} 43... Kh6 {[%clk 0:00:43.5]} 0-1

[Event "*** Titled Tuesday Blitz"]
[Site "Chess.com"]
[Date "2020.05.19"]
[Round "2"]
[White "ClassyEl"]
[Black "kuban1991"]
[Result "0-1"]
[WhiteElo "2489"]
[BlackElo "2734"]
[TimeControl "180+1"]
[EndTime "12:18:21 PDT"]
[Termination "kuban1991 won by resignation"]

1. d4 {[%clk 0:03:00.9]} 1... g6 {[%clk 0:02:59.7]} 2. e4 {[%clk 0:03:00.5]}
2... Bg7 {[%clk 0:03:00.1]} 3. c3 {[%clk 0:03:00.9]} 3... d5 {[%clk 0:02:59.2]}
4. e5 {[%clk 0:03:00.7]} 4... c5 {[%clk 0:02:58.7]} 5. Be3 {[%clk 0:02:59.8]}
5... Nc6 {[%clk 0:02:58.1]} 6. f4 {[%clk 0:02:59.7]} 6... cxd4 {[%clk
0:02:54.8]} 7. cxd4 {[%clk 0:02:59.6]} 7... Nh6 {[%clk 0:02:55.2]} 8. Nf3 {[%clk
0:02:58.3]} 8... O-O {[%clk 0:02:55.6]} 9. Nc3 {[%clk 0:02:57]} 9... Bg4 {[%clk
0:02:55.5]} 10. Be2 {[%clk 0:02:56.5]} 10... Nf5 {[%clk 0:02:55.9]} 11. Bf2
{[%clk 0:02:56.5]} 11... Bh6 {[%clk 0:02:49.1]} 12. g3 {[%clk 0:02:51.6]} 12...
Bh3 {[%clk 0:02:32.4]} 13. Bf1 {[%clk 0:02:36.2]} 13... Bxf1 {[%clk 0:02:31.1]}
14. Kxf1 {[%clk 0:02:36.6]} 14... e6 {[%clk 0:02:28.3]} 15. Kg2 {[%clk 0:02:33]}
15... f6 {[%clk 0:02:22.6]} 16. Qb3 {[%clk 0:02:21.4]} 16... Na5 {[%clk
0:02:17.6]} 17. Qb5 {[%clk 0:02:16.7]} 17... a6 {[%clk 0:02:14.4]} 18. Qe2
{[%clk 0:02:16.8]} 18... Rc8 {[%clk 0:02:06.9]} 19. Rhe1 {[%clk 0:02:15.1]}
19... fxe5 {[%clk 0:01:59.7]} 20. Nxe5 {[%clk 0:02:01.9]} 20... Bg7 {[%clk
0:01:58.2]} 21. Rac1 {[%clk 0:01:54.9]} 21... b5 {[%clk 0:01:50.2]} 22. Nf3
{[%clk 0:01:36.6]} 22... Re8 {[%clk 0:01:40.8]} 23. a4 {[%clk 0:00:50.3]} 23...
b4 {[%clk 0:01:38.7]} 24. Na2 {[%clk 0:00:50.3]} 24... Rxc1 {[%clk 0:01:38.2]}
25. Rxc1 {[%clk 0:00:49.8]} 25... Qb6 {[%clk 0:01:36.8]} 26. Qd2 {[%clk
0:00:49]} 26... b3 {[%clk 0:01:33.9]} 27. Nb4 {[%clk 0:00:35.7]} 27... Nc4
{[%clk 0:01:30.6]} 28. Qc3 {[%clk 0:00:35.5]} 28... a5 {[%clk 0:01:26.3]} 29.
Nd3 {[%clk 0:00:35.5]} 29... h6 {[%clk 0:01:14.2]} 30. Nc5 {[%clk 0:00:35.4]}
30... Kh7 {[%clk 0:01:11.3]} 31. Re1 {[%clk 0:00:34.3]} 31... Qxc5 {[%clk
0:01:04.8]} 32. dxc5 {[%clk 0:00:33.2]} 32... Bxc3 {[%clk 0:01:05.1]} 33. bxc3
{[%clk 0:00:33.7]} 33... b2 {[%clk 0:01:05.8]} 34. Rb1 {[%clk 0:00:31.3]} 34...
Rb8 {[%clk 0:01:05.5]} 35. c6 {[%clk 0:00:31.7]} 35... Ne7 {[%clk 0:00:45.4]}
36. c7 {[%clk 0:00:31.1]} 36... Rb7 {[%clk 0:00:44.2]} 37. Bc5 {[%clk
0:00:13.1]} 37... Rxc7 {[%clk 0:00:43.9]} 38. Bxe7 {[%clk 0:00:10.4]} 38... Rxe7
{[%clk 0:00:44.8]} 39. Ne1 {[%clk 0:00:10.5]} 39... Rb7 {[%clk 0:00:43.6]} 40.
Nd3 {[%clk 0:00:11]} 40... Rb3 {[%clk 0:00:43.2]} 41. Kf2 {[%clk 0:00:07.9]}
41... Rxc3 {[%clk 0:00:43.2]} 42. Ke2 {[%clk 0:00:08.3]} 42... Ra3 {[%clk
0:00:40.3]} 43. Kd1 {[%clk 0:00:06.7]} 43... Rxd3+ {[%clk 0:00:40]} 0-1

[Event "*** Titled Tuesday Blitz"]
[Site "Chess.com"]
[Date "2020.05.19"]
[Round "2"]
[White "Susal_De_Silva"]
[Black "PavelShkapenko"]
[Result "1/2-1/2"]
[WhiteElo "2372"]
[BlackElo "2673"]
[TimeControl "180+1"]
[EndTime "12:18:21 PDT"]
[Termination "Game drawn by repetition"]

1. e4 {[%clk 0:03:00.9]} 1... c5 {[%clk 0:02:58.1]} 2. Nf3 {[%clk 0:03:01]} 2...
e6 {[%clk 0:02:58.2]} 3. d4 {[%clk 0:03:00.5]} 3... cxd4 {[%clk 0:02:58.8]} 4.
Nxd4 {[%clk 0:03:00.2]} 4... Nf6 {[%clk 0:02:59.4]} 5. Nc3 {[%clk 0:02:59.4]}
5... Nc6 {[%clk 0:02:59.9]} 6. Be2 {[%clk 0:02:58.8]} 6... Bb4 {[%clk
0:02:59.6]} 7. Nxc6 {[%clk 0:02:58.2]} 7... bxc6 {[%clk 0:02:59.1]} 8. Qd3
{[%clk 0:02:57.7]} 8... O-O {[%clk 0:02:34.3]} 9. O-O {[%clk 0:02:55.2]} 9... d5
{[%clk 0:02:34]} 10. Bg5 {[%clk 0:02:42.5]} 10... Be7 {[%clk 0:02:25.4]} 11.
Rad1 {[%clk 0:02:09.5]} 11... a5 {[%clk 0:02:06.7]} 12. e5 {[%clk 0:01:48.3]}
12... Nd7 {[%clk 0:02:06.2]} 13. Bxe7 {[%clk 0:01:45.7]} 13... Qxe7 {[%clk
0:02:06.7]} 14. f4 {[%clk 0:01:44]} 14... Ba6 {[%clk 0:02:06.7]} 15. Qf3 {[%clk
0:01:43.6]} 15... Bxe2 {[%clk 0:02:06.8]} 16. Nxe2 {[%clk 0:01:40]} 16... c5
{[%clk 0:01:51.3]} 17. Ng3 {[%clk 0:01:37.2]} 17... g6 {[%clk 0:01:45.8]} 18. c4
{[%clk 0:01:30.6]} 18... d4 {[%clk 0:01:40.1]} 19. Ne4 {[%clk 0:01:29.9]} 19...
Rfb8 {[%clk 0:01:34.7]} 20. Rd2 {[%clk 0:01:22.4]} 20... a4 {[%clk 0:01:23.7]}
21. g4 {[%clk 0:01:21.1]} 21... Ra6 {[%clk 0:01:14.8]} 22. g5 {[%clk 0:01:19.9]}
22... Rab6 {[%clk 0:01:12]} 23. Rff2 {[%clk 0:01:17.1]} 23... Rb4 {[%clk
0:01:09.8]} 24. Rc2 {[%clk 0:01:13.3]} 24... Qd8 {[%clk 0:01:00.7]} 25. h4
{[%clk 0:01:08.6]} 25... Qb6 {[%clk 0:00:55.1]} 26. h5 {[%clk 0:01:02.4]} 26...
Kf8 {[%clk 0:00:55.3]} 27. hxg6 {[%clk 0:00:57.2]} 27... hxg6 {[%clk 0:00:55.6]}
28. Nf6 {[%clk 0:00:56.5]} 28... Ke7 {[%clk 0:00:51]} 29. Rh2 {[%clk 0:00:56.8]}
29... Qb7 {[%clk 0:00:45.1]} 30. Qe2 {[%clk 0:00:45.7]} 30... Nxf6 {[%clk
0:00:42.8]} 31. exf6+ {[%clk 0:00:34.4]} 31... Kd6 {[%clk 0:00:42.9]} 32. Qe5+
{[%clk 0:00:33]} 32... Kc6 {[%clk 0:00:43.3]} 33. Rh7 {[%clk 0:00:22.2]} 33...
Rxb2 {[%clk 0:00:19.6]} 34. Qe4+ {[%clk 0:00:22.1]} 34... Kd6 {[%clk 0:00:19.5]}
35. Qe5+ {[%clk 0:00:19.7]} 35... Kc6 {[%clk 0:00:19.8]} 36. Qe4+ {[%clk
0:00:19.7]} 36... Kd6 {[%clk 0:00:20.1]} 37. Qe5+ {[%clk 0:00:12.1]} 37... Kc6
{[%clk 0:00:20.3]} 1/2-1/2

[Event "*** Titled Tuesday Blitz"]
[Site "Chess.com"]
[Date "2020.05.19"]
[Round "2"]
[White "SchmakAttack"]
[Black "DonBroca"]
[Result "1-0"]
[WhiteElo "2427"]
[BlackElo "2189"]
[TimeControl "180+1"]
[EndTime "12:18:21 PDT"]
[Termination "SchmakAttack won on time"]

1. e4 {[%clk 0:03:00.9]} 1... c5 {[%clk 0:02:58.1]} 2. Nf3 {[%clk 0:03:00.7]}
2... d6 {[%clk 0:02:57.8]} 3. d4 {[%clk 0:03:01.2]} 3... cxd4 {[%clk 0:02:58.6]}
4. Nxd4 {[%clk 0:03:01.8]} 4... Nf6 {[%clk 0:02:58.8]} 5. Nc3 {[%clk 0:03:02.5]}
5... g6 {[%clk 0:02:59.1]} 6. Be3 {[%clk 0:03:02.7]} 6... Bg7 {[%clk 0:02:59.5]}
7. f3 {[%clk 0:03:03.3]} 7... Nc6 {[%clk 0:02:57.9]} 8. Qd2 {[%clk 0:03:03.5]}
8... O-O {[%clk 0:02:58.4]} 9. Bc4 {[%clk 0:03:02.8]} 9... Bd7 {[%clk
0:02:57.9]} 10. O-O-O {[%clk 0:03:02.8]} 10... Rc8 {[%clk 0:02:57.2]} 11. Bb3
{[%clk 0:03:02.9]} 11... Ne5 {[%clk 0:02:57.3]} 12. g4 {[%clk 0:03:02.9]} 12...
b5 {[%clk 0:02:43.8]} 13. Bh6 {[%clk 0:01:58.4]} 13... Bxh6 {[%clk 0:02:37.4]}
14. Qxh6 {[%clk 0:01:59.3]} 14... Rxc3 {[%clk 0:02:36.9]} 15. bxc3 {[%clk
0:01:57.5]} 15... Qc7 {[%clk 0:02:36.4]} 16. Kb2 {[%clk 0:01:46.5]} 16... Rc8
{[%clk 0:02:35.4]} 17. Qe3 {[%clk 0:01:45]} 17... a5 {[%clk 0:02:33.5]} 18. a3
{[%clk 0:01:43.9]} 18... a4 {[%clk 0:02:15.9]} 19. Ba2 {[%clk 0:01:42.7]} 19...
Qc5 {[%clk 0:02:08.8]} 20. Rhe1 {[%clk 0:01:19.1]} 20... Rb8 {[%clk 0:01:56.6]}
21. h3 {[%clk 0:01:14.9]} 21... Be6 {[%clk 0:01:25.1]} 22. Nxe6 {[%clk
0:01:02.5]} 22... Nc4+ {[%clk 0:01:23.4]} 23. Bxc4 {[%clk 0:01:01.9]} 23...
bxc4+ {[%clk 0:01:19]} 24. Ka2 {[%clk 0:01:02]} 24... Qxe3 {[%clk 0:01:13]} 25.
Rxe3 {[%clk 0:01:00.9]} 25... fxe6 {[%clk 0:01:12.8]} 26. Rb1 {[%clk 0:00:59.8]}
26... Rc8 {[%clk 0:01:09]} 27. Rb4 {[%clk 0:00:38.7]} 27... d5 {[%clk 0:01:09]}
28. Rxa4 {[%clk 0:00:36]} 28... Rc7 {[%clk 0:01:05.3]} 29. Ra6 {[%clk
0:00:28.4]} 29... Kf7 {[%clk 0:01:04.4]} 30. Ra5 {[%clk 0:00:20.6]} 30... Nd7
{[%clk 0:00:42]} 31. exd5 {[%clk 0:00:19.2]} 31... exd5 {[%clk 0:00:41]} 32.
Rxd5 {[%clk 0:00:20.1]} 32... Nf6 {[%clk 0:00:35.5]} 33. Rd4 {[%clk 0:00:20.1]}
33... h6 {[%clk 0:00:29.9]} 34. h4 {[%clk 0:00:17.6]} 34... g5 {[%clk
0:00:28.4]} 35. hxg5 {[%clk 0:00:17.3]} 35... hxg5 {[%clk 0:00:29.3]} 36. Re5
{[%clk 0:00:17.7]} 36... Kg6 {[%clk 0:00:15.6]} 37. a4 {[%clk 0:00:17.9]} 1-0

[Event "*** Titled Tuesday Blitz"]
[Site "Chess.com"]
[Date "2020.05.19"]
[Round "2"]
[White "garicradomir"]
[Black "Chessmatus"]
[Result "0-1"]
[WhiteElo "2277"]
[BlackElo "2494"]
[TimeControl "180+1"]
[EndTime "12:18:24 PDT"]
[Termination "Chessmatus won by resignation"]

1. e4 {[%clk 0:03:00.9]} 1... e5 {[%clk 0:03:00]} 2. Nf3 {[%clk 0:03:01.1]} 2...
Nc6 {[%clk 0:03:00.2]} 3. Nc3 {[%clk 0:03:01.6]} 3... Nf6 {[%clk 0:02:59.3]} 4.
Bb5 {[%clk 0:03:01.8]} 4... Bd6 {[%clk 0:02:59.3]} 5. d3 {[%clk 0:03:01.7]} 5...
O-O {[%clk 0:02:58.2]} 6. a3 {[%clk 0:03:02.1]} 6... Re8 {[%clk 0:02:57.6]} 7.
g4 {[%clk 0:03:01.3]} 7... a6 {[%clk 0:02:47.9]} 8. Bc4 {[%clk 0:03:00.6]} 8...
Bc5 {[%clk 0:02:45.1]} 9. g5 {[%clk 0:02:55.5]} 9... Nh5 {[%clk 0:02:44.5]} 10.
Be3 {[%clk 0:02:51.8]} 10... Bxe3 {[%clk 0:02:34.4]} 11. fxe3 {[%clk 0:02:52.7]}
11... d6 {[%clk 0:02:34.7]} 12. Rg1 {[%clk 0:02:43.9]} 12... g6 {[%clk
0:01:07.2]} 13. Qd2 {[%clk 0:02:12.6]} 13... b5 {[%clk 0:00:53.7]} 14. Bd5
{[%clk 0:02:12]} 14... Bd7 {[%clk 0:00:46.8]} 15. Qf2 {[%clk 0:02:06.6]} 15...
Rf8 {[%clk 0:00:42]} 16. Ne2 {[%clk 0:01:53.9]} 16... Rb8 {[%clk 0:00:37.3]} 17.
Ng3 {[%clk 0:01:53.5]} 17... Ng7 {[%clk 0:00:33.1]} 18. Nh4 {[%clk 0:01:52.6]}
18... Ne7 {[%clk 0:00:28.6]} 19. Ba2 {[%clk 0:01:50.5]} 19... Be6 {[%clk
0:00:28.5]} 20. Bb3 {[%clk 0:01:40.5]} 20... c5 {[%clk 0:00:27.6]} 21. Bxe6
{[%clk 0:01:19.9]} 21... fxe6 {[%clk 0:00:27.5]} 22. Qe2 {[%clk 0:01:20.8]}
22... Qa5+ {[%clk 0:00:24.2]} 23. c3 {[%clk 0:01:13.3]} 23... b4 {[%clk
0:00:24.4]} 24. Qc2 {[%clk 0:01:10.1]} 24... bxc3 {[%clk 0:00:24.6]} 25. bxc3
{[%clk 0:01:06.9]} 25... d5 {[%clk 0:00:24.9]} 26. Kd2 {[%clk 0:01:01.2]} 26...
d4 {[%clk 0:00:24]} 27. Ne2 {[%clk 0:00:58.8]} 27... dxe3+ {[%clk 0:00:17.2]}
28. Kxe3 {[%clk 0:00:59.7]} 28... c4 {[%clk 0:00:17.7]} 29. Qa2 {[%clk
0:00:54.7]} 29... Qc5+ {[%clk 0:00:16.5]} 30. d4 {[%clk 0:00:54.7]} 30... exd4+
{[%clk 0:00:16.7]} 31. cxd4 {[%clk 0:00:54.9]} 31... Qc7 {[%clk 0:00:17]} 32.
Rg2 {[%clk 0:00:53.6]} 32... Rb3+ {[%clk 0:00:16.6]} 33. Kd2 {[%clk 0:00:53]}
33... Rfb8 {[%clk 0:00:16.5]} 34. Ke1 {[%clk 0:00:21.1]} 34... Rb2 {[%clk
0:00:16.9]} 35. Nc3 {[%clk 0:00:21]} 35... Rxa2 {[%clk 0:00:16.9]} 36. Raxa2
{[%clk 0:00:21.9]} 36... Qf4 {[%clk 0:00:16.7]} 37. Rac2 {[%clk 0:00:20.3]}
37... Rb3 {[%clk 0:00:16.5]} 38. Ne2 {[%clk 0:00:16.6]} 38... Qxh4+ {[%clk
0:00:16.6]} 0-1

[Event "*** Titled Tuesday Blitz"]
[Site "Chess.com"]
[Date "2020.05.19"]
[Round "2"]
[White "Akhayan"]
[Black "DariaVoit"]
[Result "1-0"]
[WhiteElo "2302"]
[BlackElo "2495"]
[TimeControl "180+1"]
[EndTime "12:18:25 PDT"]
[Termination "Akhayan won by resignation"]

1. d4 {[%clk 0:03:00.9]} 1... Nf6 {[%clk 0:02:59.8]} 2. Nf3 {[%clk 0:03:00.7]}
2... e6 {[%clk 0:03:00.2]} 3. g3 {[%clk 0:03:00.6]} 3... b6 {[%clk 0:03:00.5]}
4. Bg2 {[%clk 0:03:00.9]} 4... Bb7 {[%clk 0:03:01.1]} 5. O-O {[%clk 0:03:00.9]}
5... Be7 {[%clk 0:03:01.7]} 6. c4 {[%clk 0:03:00.2]} 6... O-O {[%clk 0:03:02.3]}
7. Nc3 {[%clk 0:02:59.9]} 7... Ne4 {[%clk 0:03:01.2]} 8. Qc2 {[%clk 0:02:59.2]}
8... Nxc3 {[%clk 0:02:59.9]} 9. bxc3 {[%clk 0:02:58.9]} 9... f5 {[%clk
0:02:56.9]} 10. d5 {[%clk 0:02:58.8]} 10... Bf6 {[%clk 0:02:53.1]} 11. Nd4
{[%clk 0:02:54.7]} 11... Qe7 {[%clk 0:02:47.1]} 12. e4 {[%clk 0:02:53.5]} 12...
fxe4 {[%clk 0:02:44]} 13. Bxe4 {[%clk 0:02:53.2]} 13... Bxd4 {[%clk 0:02:35.6]}
14. Bxh7+ {[%clk 0:02:45.8]} 14... Kh8 {[%clk 0:02:35.3]} 15. cxd4 {[%clk
0:02:45.7]} 15... exd5 {[%clk 0:02:34.5]} 16. Qg6 {[%clk 0:02:37.2]} 16... Qf7
{[%clk 0:02:21.9]} 17. Qxf7 {[%clk 0:02:20.2]} 17... Rxf7 {[%clk 0:02:22.8]} 18.
Bg6 {[%clk 0:02:19.6]} 18... Rf6 {[%clk 0:02:22.3]} 19. Bd3 {[%clk 0:02:19.3]}
19... Nc6 {[%clk 0:02:09.5]} 20. Be3 {[%clk 0:02:12]} 20... Nb4 {[%clk 0:02:06]}
21. Be2 {[%clk 0:02:07.6]} 21... Re8 {[%clk 0:01:58]} 22. Rfc1 {[%clk
0:01:59.4]} 22... dxc4 {[%clk 0:01:49.3]} 23. Bxc4 {[%clk 0:01:54.3]} 23... Be4
{[%clk 0:01:47.8]} 24. Bb3 {[%clk 0:01:37.2]} 24... c6 {[%clk 0:01:43.8]} 25.
Rc3 {[%clk 0:01:33]} 25... Bd5 {[%clk 0:01:37]} 26. a3 {[%clk 0:01:22.3]} 26...
Bxb3 {[%clk 0:01:26.1]} 27. axb4 {[%clk 0:01:22]} 27... Be6 {[%clk 0:01:25.1]}
28. Rxa7 {[%clk 0:01:20.4]} 28... Rf5 {[%clk 0:01:25.5]} 29. Ra1 {[%clk
0:01:18.5]} 29... Rb5 {[%clk 0:01:24.3]} 30. Rb1 {[%clk 0:01:16.2]} 30... Ra8
{[%clk 0:01:24.6]} 31. Bf4 {[%clk 0:01:13.3]} 31... Ra4 {[%clk 0:01:16.9]} 32.
Bd6 {[%clk 0:01:12.5]} 32... Rd5 {[%clk 0:01:17]} 33. Be5 {[%clk 0:01:10.8]}
33... Rb5 {[%clk 0:01:05.1]} 34. Bd6 {[%clk 0:01:10.3]} 34... Kh7 {[%clk
0:01:04.1]} 35. Re3 {[%clk 0:01:03.3]} 35... Bf5 {[%clk 0:00:51.2]} 36. Rbe1
{[%clk 0:00:59.5]} 36... Rd5 {[%clk 0:00:50.9]} 37. Bf8 {[%clk 0:00:51.8]} 37...
Rxd4 {[%clk 0:00:42.9]} 38. Re7 {[%clk 0:00:50.7]} 38... Rg4 {[%clk 0:00:43.3]}
39. h3 {[%clk 0:00:49.6]} 39... Rg6 {[%clk 0:00:42.9]} 40. g4 {[%clk 0:00:45.6]}
40... Be6 {[%clk 0:00:42.8]} 41. f4 {[%clk 0:00:41.7]} 41... Kg8 {[%clk
0:00:41.1]} 42. Re8 {[%clk 0:00:36.6]} 42... Kf7 {[%clk 0:00:41.1]} 43. Rb8
{[%clk 0:00:36.2]} 43... b5 {[%clk 0:00:21.3]} 44. Bd6 {[%clk 0:00:35.4]} 44...
Rh6 {[%clk 0:00:14.7]} 45. f5 {[%clk 0:00:34.8]} 45... Kf6 {[%clk 0:00:11.8]}
46. fxe6 {[%clk 0:00:33.8]} 1-0